bitfinex-derivatives/quotes_SOLF0:USTF0_20250509
["timestamp","ask_amount","ask_price","bid_price","bid_amount"]
[1746795075362,5.8073,172.23,172.17,3.7088]
[1746795075659,27.88,172.22,172.13,1.9753]
[1746795076160,27.88,172.22,172.12,27.88]
[1746795076361,1.967,172.21,172.1,1.8802]
[1746795076562,5.8093,172.17,172.1,1.8802]
[1746795077255,5.8093,172.17,172.12,5.8107]
[1746795077560,5.8094,172.16,172.12,5.8107]
[1746795077955,1.967,172.21,172.08,460.3]
[1746795078751,1.16144018,172.2,172.08,460.3]
[1746795078956,5.8103,172.14,172.1,5.8113]
[1746795079249,27.78,172.15,172.06,27.78]
[1746795079453,1.9762,172.19,172.06,27.78]
[1746795079862,1.16144018,172.2,172.06,27.78]
[1746795080263,28.94144018,172.2,172.06,27.78]
[1746795081276,5.8094,172.16,172.12,5.8105]
[1746795082359,5.8091,172.17,172.13,5.8103]
[1746795082965,5.8087,172.18,172.14,5.8099]
[1746795083166,1.8623,172.19,172.06,27.78]
[1746795083466,7.6707,172.19,172.06,27.78]
[1746795083868,1.8623,172.19,172.06,27.78]
[1746795084060,5.8089,172.18,172.13,5.8101]
[1746795084466,5.8091,172.17,172.13,5.8101]
[1746795084667,1.8623,172.19,172.06,27.78]
[1746795084967,5.8096,172.16,172.06,27.78]
[1746795085270,1.8623,172.19,172.07,27.74]
[1746795085464,5.8106,172.13,172.05,1.925]
[1746795085766,1.8623,172.19,172.06,27.76]
[1746795085966,5.8094,172.16,172.06,27.76]
[1746795086163,5.8094,172.16,172.11,5.8108]
[1746795086365,5.8094,172.16,172.06,27.76]
[1746795086757,5.8094,172.16,172.11,5.8107]
[1746795086967,5.8094,172.16,172.06,27.76]
[1746795087168,3.02380763,172.19,172.06,27.76]
[1746795087169,3.02380763,172.19,172.14,5.81]
[1746795087369,28.90150763,172.19,172.06,27.76]
[1746795087869,28.90150763,172.19,172.15,5.8094]
[1746795088370,34.71010763,172.19,172.15,5.8094]
[1746795088668,28.90150763,172.19,172.07,27.76]
[1746795089267,28.90150763,172.19,172.05,1.925]
[1746795089865,28.90150763,172.19,172.13,5.8102]
[1746795090065,28.90150763,172.19,172.09,27.72]
[1746795090771,5.8096,172.16,172.09,27.72]
[1746795091167,28.90150763,172.19,172.09,27.72]
[1746795091371,1.16150763,172.19,172.09,27.72]
[1746795092065,1.16150763,172.19,172.18,5.8087]
[1746795092472,5.8067,172.24,172.2,5.8077]
[1746795092874,29.707,172.26,172.15,1.9314]
[1746795093066,5.8068,172.24,172.2,5.8078]
[1746795093270,29.707,172.26,172.15,1.9314]
[1746795093970,29.707,172.26,172.15,29.5914]
[1746795094671,5.8069,172.24,172.15,29.5914]
[1746795094976,29.707,172.26,172.17,5.8088]
[1746795095272,29.707,172.26,172.12,3.7425]
[1746795095470,29.707,172.26,172.13,27.66]
[1746795095669,3.13730304,172.25,172.13,27.66]
[1746795095869,3.13730304,172.25,172.15,5.8094]
[1746795096077,3.13730304,172.25,172.11,460.1]
[1746795096377,1.16117045,172.24,172.11,460.1]
[1746795096569,1.16117045,172.24,172.14,5.81]
[1746795096768,1.16117045,172.24,172.11,460.1]
[1746795096972,1.16117045,172.24,172.13,5.8102]
[1746795097171,1.16117045,172.24,172.11,460.1]
[1746795097574,5.8091,172.17,172.14,5.8098]
[1746795097775,27.62,172.19,172.09,27.64]
[1746795097973,27.6,172.21,172.09,27.64]
[1746795098680,5.809,172.17,172.14,5.8098]
[1746795098978,27.6,172.21,172.09,27.64]
[1746795099276,5.8094,172.16,172.13,5.8102]
[1746795099472,1.8175,172.2,172.09,27.64]
[1746795099779,5.8093,172.17,172.09,27.64]
[1746795100173,1.8175,172.2,172.09,27.64]
[1746795100375,1.8175,172.2,172.09,28.64]
[1746795100782,5.8091,172.17,172.13,5.8103]
[1746795100976,1.8175,172.2,172.09,28.64]
[1746795101283,5.8088,172.18,172.09,28.64]
[1746795101782,29.4575,172.2,172.09,28.64]
[1746795101970,5.8092,172.17,172.12,5.8106]
[1746795102481,5.8092,172.17,172.09,28.64]
[1746795103181,10.9378006,172.18,172.09,1.0]
[1746795103378,46.9175,172.2,172.0,3.7721]
[1746795103379,10.9378006,172.14,172.0,3.7721]
[1746795103576,5.8133,172.05,172.0,1.9353]
[1746795103875,27.72,172.08,171.99,1.8861]
[1746795104379,27.72,172.08,171.98,6.85852094]
[1746795104581,3.8188,172.07,171.98,6.85852094]
[1746795104875,3.8188,172.07,171.99,5.8151]
[1746795105080,3.8188,172.07,171.98,6.85852094]
[1746795105683,5.814,172.03,171.99,5.815]
[1746795106979,5.8131,172.05,171.96,460.08]
[1746795107183,3.8188,172.07,171.96,460.08]
[1746795107782,5.8137,172.04,171.99,5.815]
[1746795107985,5.8137,172.04,171.96,460.08]
[1746795108278,5.8137,172.04,172.0,5.8146]
[1746795108483,27.6,172.1,171.98,27.6]
[1746795108682,38.5378006,172.1,171.98,27.6]
[1746795108886,5.8132,172.05,172.01,5.8144]
[1746795109182,33.4132,172.05,172.01,5.8144]
[1746795109883,5.8135,172.04,172.0,5.8147]
[1746795110280,33.4131,172.05,172.01,5.8144]
[1746795110484,27.6,172.05,171.98,27.6]
[1746795111380,5.8137,172.04,171.99,5.8149]
[1746795111581,5.8137,172.04,171.96,460.08]
[1746795112086,27.6,172.05,171.96,460.08]
[1746795112383,27.68,172.06,171.96,460.08]
[1746795112985,27.68,172.06,172.0,5.8147]
[1746795113188,5.8133,172.05,172.0,5.8147]
[1746795113384,27.68,172.06,171.96,460.08]
[1746795113585,5.8134,172.05,171.96,460.08]
[1746795113782,27.68,172.06,171.96,460.08]
[1746795114186,5.8131,172.05,172.0,5.8145]
[1746795115280,27.6,172.05,171.96,460.08]
[1746795115785,27.6,172.05,172.02,5.8139]
[1746795116490,27.6,172.05,172.01,5.8143]
[1746795116989,27.6,172.05,171.96,460.08]
[1746795117883,3.7258,172.08,171.96,460.08]
[1746795118083,10.9378006,172.14,171.96,460.08]
[1746795118278,27.6,172.12,172.06,5.8125]
[1746795118483,27.6,172.11,172.0,27.6]
[1746795118685,27.6,172.11,172.01,1.8596]
[1746795118886,27.6,172.11,172.06,5.8125]
[1746795120089,27.6,172.11,172.07,5.8123]
[1746795120289,27.6,172.11,172.01,1.8596]
[1746795121090,5.5286,172.15,172.01,1.8596]
[1746795121290,27.62,172.12,172.01,1.8596]
[1746795121488,5.5286,172.15,172.01,1.8596]
[1746795121795,27.66,172.14,172.01,12.7974006]
[1746795122889,29.5358,172.15,172.01,12.7974006]
[1746795123294,27.66,172.15,172.02,11.6282]
[1746795123490,460.08,172.18,172.01,12.7974006]
[1746795123695,460.08,172.18,172.03,11.6275]
[1746795123696,27.68,172.18,172.03,11.6275]
[1746795123887,27.68,172.18,172.04,3.8973]
[1746795124086,27.68,172.18,172.05,27.66]
[1746795124289,5.81,172.15,172.1,5.8112]
[1746795124994,27.68,172.18,172.1,5.8112]
[1746795125294,27.68,172.18,172.11,5.811]
[1746795125497,5.8097,172.16,172.11,5.811]
[1746795125793,27.68,172.18,172.05,27.66]
[1746795126095,5.8102,172.14,172.05,27.66]
[1746795126596,5.8102,172.14,172.09,5.8115]
[1746795126991,27.68,172.18,172.05,27.66]
[1746795127190,27.68,172.18,172.12,5.8105]
[1746795127591,1.9759,172.19,172.04,14.8351006]
[1746795127794,27.66,172.2,172.16,5.8092]
[1746795127997,27.66,172.2,172.1,27.66]
[1746795128192,33.4683,172.2,172.1,27.66]
[1746795128393,27.66,172.2,172.16,5.8091]
[1746795128592,27.66,172.2,172.11,1.9282]
[1746795128792,27.66,172.2,172.16,5.8093]
[1746795129094,1.9821,172.23,172.16,5.8093]
[1746795129298,33.5078,172.21,172.11,1.9282]
[1746795129495,33.5078,172.21,172.17,5.8088]
[1746795129793,1.9821,172.23,172.11,1.9282]
[1746795130002,357.0,172.26,172.22,5.8071]
[1746795130189,27.72,172.26,172.22,5.8071]
[1746795130398,27.72,172.26,172.16,27.72]
[1746795130897,27.72,172.26,172.22,5.8071]
[1746795131402,27.72,172.26,172.16,27.72]
[1746795131901,1.9193,172.29,172.16,27.72]
[1746795132700,3.7863,172.3,172.16,27.72]
[1746795133098,5.8051,172.29,172.16,27.72]
[1746795133302,3.7863,172.3,172.16,27.72]
[1746795133807,9.591,172.3,172.25,5.8061]
[1746795133999,9.591,172.3,172.21,27.72]
[1746795134300,3.7863,172.3,172.21,27.72]
[1746795134501,5.8053,172.29,172.24,5.8064]
[1746795134896,3.7863,172.3,172.21,27.72]
[1746795135105,9.5912,172.3,172.21,27.72]
[1746795135296,3.7863,172.3,172.21,27.72]
[1746795135496,5.8051,172.29,172.25,5.8063]
[1746795135699,31.4263,172.3,172.19,27.64]
[1746795136196,27.66,172.33,172.2,3.8216]
[1746795136408,27.66,172.33,172.2,5.69]
[1746795136808,33.4639,172.33,172.28,5.8051]
[1746795137007,27.66,172.33,172.24,27.66]
[1746795137208,1.9733,172.34,172.28,5.805]
[1746795137409,27.7,172.33,172.24,27.66]
[1746795138008,27.7,172.33,172.2,33.37]
[1746795138504,27.7,172.33,172.29,5.8049]
[1746795138712,1.9614,172.37,172.21,27.68]
[1746795138905,27.74,172.36,172.21,27.68]
[1746795139507,33.5429,172.36,172.31,5.804]
[1746795139806,27.74,172.36,172.31,5.804]
[1746795140112,1.9614,172.37,172.32,5.8039]
[1746795140308,29.7214,172.37,172.26,27.78]
[1746795140508,29.7214,172.37,172.27,1.8977]
[1746795140911,27.76,172.37,172.28,3.7758]
[1746795141319,362.8017,172.39,172.28,3.7758]
[1746795141814,5.801,172.41,172.28,3.7758]
[1746795142111,27.84,172.42,172.28,3.7758]
[1746795142303,5.8018,172.39,172.34,5.803]
[1746795142508,5.8018,172.39,172.31,27.84]
[1746795144113,5.8018,172.39,172.34,5.803]
[1746795144313,5.8014,172.4,172.31,27.84]
[1746795144814,5.8014,172.4,172.35,5.8027]
[1746795145914,5.8016,172.39,172.35,5.8027]
[1746795146416,27.78,172.42,172.35,5.8027]
[1746795146613,5.8014,172.4,172.35,5.8027]
[1746795147316,27.78,172.42,172.33,5.8034]
[1746795147511,10.9378006,172.4,172.28,31.5358]
[1746795147716,1.9902,172.39,172.28,31.5358]
[1746795147916,5.8024,172.37,172.33,5.8035]
[1746795148214,1.9902,172.39,172.28,31.5358]
[1746795148417,5.8029,172.36,172.32,5.8039]
[1746795148612,5.8029,172.36,172.28,31.5358]
[1746795149011,27.74,172.37,172.27,27.74]
[1746795149509,33.5423,172.37,172.27,27.74]
[1746795149720,27.74,172.37,172.27,27.74]
[1746795150517,27.74,172.37,172.34,5.8031]
[1746795151112,27.74,172.37,172.27,27.74]
[1746795151514,27.74,172.37,172.32,5.8039]
[1746795151812,27.74,172.37,172.27,27.74]
[1746795152121,33.5426,172.37,172.32,5.8037]
[1746795152319,27.74,172.37,172.27,27.74]
[1746795152920,27.74,172.37,172.22,18.21829582]
[1746795153121,27.74,172.37,172.23,27.88]
[1746795153421,5.803,172.35,172.23,27.88]
[1746795153718,27.74,172.37,172.22,6.60389582]
[1746795153921,5.8045,172.31,172.26,5.8058]
[1746795154121,12.7859006,172.36,172.23,27.88]
[1746795154516,5.8047,172.3,172.26,5.8057]
[1746795154721,27.9,172.32,172.23,27.88]
[1746795155320,27.9,172.32,172.22,5.594]
[1746795155519,5.8055,172.28,172.23,5.8068]
[1746795156221,5.8055,172.28,172.24,5.8066]
[1746795156421,5.805,172.29,172.2,27.94]
[1746795157824,5.805,172.29,172.25,5.8062]
[1746795158323,5.805,172.29,172.26,5.806]
[1746795158525,1.9622,172.3,172.2,27.88]
[1746795159825,1.8601,172.31,172.2,27.88]
[1746795160122,27.84,172.32,172.2,27.88]
[1746795160323,9.5288,172.35,172.2,27.88]
[1746795160523,3.7257,172.35,172.2,27.88]
[1746795160722,31.5457,172.35,172.2,27.88]
[1746795160913,1.8386,172.35,172.2,27.88]
[1746795161725,1.8386,172.35,172.32,5.8037]
[1746795162216,1.8481,172.36,172.32,5.8037]
[1746795162416,1.8481,172.36,172.27,27.8]
[1746795162620,1.8481,172.36,172.29,1.0]
[1746795163626,5.8035,172.34,172.3,5.8045]
[1746795164922,5.8035,172.34,172.31,5.8043]
[1746795165427,5.8031,172.35,172.31,5.8043]
[1746795165722,5.8031,172.35,172.32,5.8039]
[1746795165930,1.8481,172.36,172.32,5.8039]
[1746795166128,7.6508,172.36,172.29,1.0]
[1746795166323,7.6508,172.36,172.32,5.8038]
[1746795167228,7.6508,172.36,172.33,5.8035]
[1746795167427,5.803,172.35,172.29,1.0]
[1746795168329,5.803,172.35,172.31,5.804]
[1746795168829,1.8481,172.36,172.3,5.8045]
[1746795169025,1.8481,172.36,172.29,1.0]
[1746795169426,5.803,172.35,172.29,1.0]
[1746795170426,7.6508,172.36,172.29,1.0]
[1746795170729,1.8481,172.36,172.29,1.0]
[1746795171032,5.8031,172.35,172.31,5.8043]
[1746795171730,5.8034,172.34,172.31,5.8043]
[1746795172627,5.8031,172.35,172.32,5.8039]
[1746795172831,5.8031,172.35,172.29,1.0]
[1746795173020,5.8031,172.35,172.32,5.8039]
[1746795173630,5.8033,172.34,172.29,1.0]
[1746795174324,5.8031,172.35,172.29,1.0]
[1746795174524,1.8481,172.36,172.29,1.0]
[1746795175024,5.8032,172.35,172.29,1.0]
[1746795175230,5.8032,172.35,172.31,5.8041]
[1746795175432,5.8032,172.35,172.29,1.0]
[1746795175633,31.2384,172.39,172.29,28.5]
[1746795175833,31.2384,172.39,172.34,5.803]
[1746795176228,27.5,172.4,172.29,28.5]
[1746795176435,27.5,172.4,172.3,3.7481]
[1746795176627,29.4135,172.41,172.3,3.7481]
[1746795177036,5.8014,172.4,172.3,3.7481]
[1746795177231,5.8014,172.4,172.37,5.8023]
[1746795177433,5.801,172.41,172.37,5.8023]
[1746795177830,29.3141,172.43,172.37,5.8023]
[1746795178028,7.6146,172.43,172.37,5.8023]
[1746795178223,35.0946,172.43,172.38,5.8019]
[1746795178626,29.2941,172.43,172.34,27.52]
[1746795178831,1.8935,172.46,172.34,27.52]
[1746795179133,5.8,172.44,172.35,1.9172]
[1746795179335,27.54,172.45,172.35,1.9172]
[1746795179832,12.8783006,172.44,172.32,27.62]
[1746795181938,5.8022,172.38,172.35,5.8029]
[1746795182131,27.68,172.4,172.32,27.62]
[1746795182634,5.8017,172.39,172.35,5.8027]
[1746795182837,5.8017,172.39,172.32,27.62]
[1746795183136,5.8017,172.39,172.35,5.8027]
[1746795183537,5.8017,172.39,172.32,27.62]
[1746795183839,12.8783006,172.44,172.32,27.62]
[1746795184034,27.66,172.43,172.32,27.62]
[1746795184531,12.8783006,172.44,172.32,27.62]
[1746795184532,1.9405,172.44,172.32,27.62]
[1746795185439,7.7406,172.44,172.39,5.8014]
[1746795185837,1.9405,172.44,172.39,5.8014]
[1746795186755,5.8005,172.43,172.39,5.8014]
[1746795187538,5.8007,172.42,172.39,5.8016]
[1746795187740,1.9405,172.44,172.32,27.62]
[1746795188239,5.8004,172.43,172.32,27.62]
[1746795188948,5.8004,172.43,172.39,5.8014]
[1746795189942,7.7406,172.44,172.32,27.62]
[1746795190141,27.52,172.45,172.32,39.2276]
[1746795190647,5.7994,172.46,172.41,5.8007]
[1746795190846,29.4081,172.47,172.41,5.8007]
[1746795191240,1.8881,172.47,172.36,27.52]
[1746795191445,27.5,172.49,172.36,27.52]
[1746795191744,5.7987,172.48,172.43,5.8001]
[1746795191944,27.5,172.49,172.43,5.8001]
[1746795192142,27.5,172.49,172.37,5.5601]
[1746795192941,33.2985,172.49,172.37,5.5601]
[1746795193146,27.5,172.49,172.37,5.5601]
[1746795193452,5.7991,172.47,172.43,5.8]
[1746795193649,27.5,172.49,172.37,5.5601]
[1746795194043,5.7988,172.48,172.37,5.5601]
[1746795194247,27.5,172.49,172.37,5.5601]
[1746795194445,1.9154,172.51,172.37,5.5601]
[1746795194645,5.7982,172.5,172.45,5.7994]
[1746795194846,29.3554,172.51,172.45,5.7994]
[1746795194847,1.9154,172.51,172.45,5.7994]
[1746795195047,29.3554,172.51,172.45,5.7994]
[1746795195248,5.7984,172.49,172.45,5.7994]
[1746795195749,5.7984,172.49,172.46,5.7992]
[1746795195950,5.798,172.5,172.46,5.7992]
[1746795196153,1.9429,172.52,172.41,27.44]
[1746795197453,1.9429,172.52,172.47,5.7988]
[1746795198053,1.9429,172.52,172.48,5.7986]
[1746795198256,1.9429,172.52,172.41,27.44]
[1746795198752,1.9429,172.52,172.47,5.7989]
[1746795198954,1.9429,172.52,172.41,27.44]
[1746795199253,5.7977,172.51,172.47,5.7989]
[1746795200052,5.7977,172.51,172.48,5.7985]
[1746795200555,1.9429,172.52,172.41,27.44]
[1746795200556,7.7403,172.52,172.49,5.7982]
[1746795202154,1.7998,172.55,172.42,11.6011]
[1746795202355,384.42,172.54,172.42,11.6011]
[1746795202850,384.42,172.54,172.43,11.6006]
[1746795203152,390.2166,172.54,172.5,5.7976]
[1746795203351,357.0,172.54,172.44,1.9121]
[1746795203550,384.42,172.54,172.44,1.9121]
[1746795204047,27.42,172.54,172.44,1.9121]
[1746795204852,33.2167,172.54,172.49,5.7982]
[1746795205253,27.42,172.54,172.49,5.7982]
[1746795205454,5.7971,172.53,172.49,5.7982]
[1746795206854,5.7971,172.53,172.5,5.7979]
[1746795207455,33.2167,172.54,172.5,5.7979]
[1746795207649,33.2167,172.54,172.51,5.7976]
[1746795207854,27.42,172.54,172.44,1.9121]
[1746795208352,27.42,172.54,172.49,5.798]
[1746795208558,27.42,172.54,172.44,1.9121]
[1746795208757,5.797,172.53,172.44,1.9121]
[1746795208956,5.797,172.53,172.49,5.798]
[1746795209155,5.7974,172.52,172.49,5.798]
[1746795209458,27.42,172.54,172.49,5.798]
[1746795209658,357.0,172.61,172.46,27.42]
[1746795209953,6.80715869,172.59,172.55,5.7962]
[1746795210159,34.22715869,172.59,172.46,27.42]
[1746795210657,40.02215869,172.59,172.47,11.5979]
[1746795210858,34.22715869,172.59,172.47,11.5979]
[1746795211258,40.02205869,172.59,172.55,5.7961]
[1746795211459,34.22715869,172.59,172.47,11.5979]
[1746795211656,6.80715869,172.59,172.47,11.5979]
[1746795211858,33.2154,172.58,172.46,27.42]
[1746795212059,27.42,172.58,172.46,27.42]
[1746795212263,27.42,172.58,172.51,5.7975]
[1746795212458,27.42,172.58,172.46,27.42]
[1746795212760,5.7962,172.55,172.5,5.7977]
[1746795213161,27.42,172.58,172.5,5.7977]
[1746795213359,27.42,172.58,172.49,5.798]
[1746795213559,6.80715869,172.56,172.45,29.2432]
[1746795213760,1.9667,172.55,172.45,27.42]
[1746795213958,6.80715869,172.53,172.45,27.42]
[1746795214161,27.42,172.52,172.45,27.42]
[1746795214664,5.7981,172.5,172.47,5.7987]
[1746795215062,27.42,172.52,172.47,5.7987]
[1746795215263,5.7978,172.51,172.47,5.7987]
[1746795215459,27.42,172.52,172.4,1.8861]
[1746795215764,5.7981,172.5,172.42,27.42]
[1746795216062,27.42,172.52,172.42,27.42]
[1746795216257,5.7977,172.51,172.42,27.42]
[1746795216455,27.42,172.52,172.48,5.7985]
[1746795216859,5.7979,172.5,172.42,27.42]
[1746795217059,27.42,172.52,172.4,1.8861]
[1746795217459,5.7983,172.49,172.4,1.8861]
[1746795217764,27.42,172.52,172.47,5.7987]
[1746795217964,5.7981,172.5,172.47,5.7987]
[1746795218264,27.42,172.52,172.4,1.8861]
[1746795218466,27.42,172.52,172.47,5.7987]
[1746795218666,27.42,172.52,172.4,1.8861]
[1746795218959,27.42,172.52,172.47,5.7987]
[1746795219154,5.7982,172.5,172.47,5.7987]
[1746795219565,5.7982,172.5,172.48,5.7986]
[1746795219864,5.7982,172.5,172.4,1.8861]
[1746795220065,5.7977,172.51,172.47,5.7987]
[1746795220466,27.42,172.52,172.47,5.7987]
[1746795220467,5.7979,172.5,172.47,5.7987]
[1746795221464,5.7983,172.49,172.46,5.7991]
[1746795221969,27.42,172.52,172.4,1.8861]
[1746795222167,5.7981,172.5,172.47,5.7987]
[1746795222467,3.6861,172.54,172.41,470.8419]
[1746795222667,31.1061,172.54,172.42,27.42]
[1746795222868,5.7975,172.52,172.49,5.798]
[1746795224270,5.797,172.53,172.42,27.42]
[1746795224470,31.1061,172.54,172.43,1.8051]
[1746795224969,5.7974,172.52,172.49,5.7981]
[1746795225170,31.1061,172.54,172.43,1.8051]
[1746795225470,5.7971,172.53,172.5,5.7977]
[1746795226368,5.7971,172.53,172.51,5.7976]
[1746795226570,5.7971,172.53,172.43,1.8051]
[1746795226768,5.7973,172.52,172.43,1.8051]
[1746795227171,5.797,172.53,172.43,1.8051]
[1746795227472,29.2708,172.54,172.48,5.7984]
[1746795227671,1.8708,172.54,172.43,1.8051]
[1746795227963,29.2708,172.54,172.43,1.8051]
[1746795228170,10.89611413,172.59,172.43,1.8051]
[1746795228360,27.4,172.56,172.43,1.8051]
[1746795228671,5.7964,172.55,172.43,1.8051]
[1746795228977,27.4,172.56,172.43,1.8051]
[1746795229271,5.7964,172.55,172.43,1.8051]
[1746795229872,5.7964,172.55,172.51,5.7974]
[1746795230173,5.796,172.56,172.43,12.70121413]
[1746795230372,27.4,172.56,172.52,5.797]
[1746795230575,5.7953,172.58,172.47,27.4]
[1746795230874,33.1953,172.58,172.53,5.7966]
[1746795231171,27.4,172.58,172.48,3.9023]
[1746795231568,27.4,172.6,172.48,3.9023]
[1746795231876,33.1945,172.61,172.48,3.9023]
[1746795232170,33.1945,172.61,172.56,5.7957]
[1746795232773,27.4,172.61,172.48,3.9023]
[1746795233275,5.7962,172.56,172.48,3.9023]
[1746795233877,10.89611413,172.59,172.47,27.4]
[1746795234076,10.90218059,172.48,172.41,1.0]
[1746795234378,5.8053,172.28,172.27,9.0615316]
[1746795234569,38.32801841,172.28,172.16,1.00952961]
[1746795234769,5.8077,172.21,172.14,5.8099]
[1746795234969,16.73571841,172.21,172.11,5.6608]
[1746795235272,16.73571841,172.21,172.11,11.4716]
[1746795235577,16.73571841,172.21,172.11,5.6608]
[1746795236981,16.73571841,172.21,172.11,11.4719]
[1746795237281,5.8081,172.2,172.11,5.6608]
[1746795237479,10.92801841,172.21,172.11,3.7164]
[1746795238673,10.92801841,172.16,172.05,1.8923]
[1746795238875,27.42,172.15,172.07,5.8123]
[1746795239680,10.92801841,172.16,172.09,5.8116]
[1746795239872,27.42,172.15,172.05,1.8923]
[1746795240071,10.92801841,172.18,172.05,1.8923]
[1746795240276,27.42,172.17,172.05,1.8923]
[1746795240779,27.42,172.17,172.12,5.8107]
[1746795240978,27.42,172.17,172.05,1.8923]
[1746795241180,27.42,172.17,172.06,27.42]
[1746795241382,27.42,172.17,172.09,5.8117]
[1746795241780,27.42,172.17,172.12,5.8107]
[1746795241982,27.42,172.17,172.06,27.42]
[1746795241983,10.92801841,172.18,172.06,27.42]
[1746795242184,10.92801841,172.21,172.06,27.42]
[1746795242482,27.44,172.2,172.06,27.42]
[1746795242982,487.04,172.22,172.06,27.42]
[1746795243583,27.44,172.22,172.06,27.42]
[1746795244085,10.92801841,172.26,172.06,27.42]
[1746795244484,27.42,172.25,172.06,27.42]
[1746795244787,27.42,172.25,172.2,5.8077]
[1746795245082,82.30225138,172.22,172.13,27.42]
[1746795246383,27.42,172.25,172.13,27.42]
[1746795246686,27.42,172.25,172.22,5.8073]
[1746795247285,27.42,172.25,172.23,5.8069]
[1746795247583,27.42,172.25,172.14,3.8651]
[1746795247781,27.44,172.25,172.22,5.8073]
[1746795247973,28.36277079,172.23,171.93,471.5141]
[1746795248174,10.94129821,172.16,172.02,3.8651]
[1746795248382,10.94129821,172.2,172.16,5.8091]
[1746795248583,27.44,172.19,172.07,27.44]
[1746795248885,27.44,172.19,172.08,1.8888]
[1746795249083,27.44,172.19,172.17,5.8088]
[1746795249383,27.44,172.19,172.08,1.8888]
[1746795249582,38.38129821,172.2,172.17,5.8088]
[1746795250984,38.38129821,172.2,172.08,1.8888]
[1746795251184,1.1613053,172.22,172.08,1.8888]
[1746795251384,28.6013053,172.22,172.2,5.8079]
[1746795252184,28.6013053,172.22,172.21,5.8077]
[1746795252776,28.6013053,172.22,172.12,27.44]
[1746795252980,10.94129821,172.21,172.12,27.44]
[1746795253688,10.94129821,172.21,172.09,27.44]
[1746795255082,28.6013053,172.22,172.09,27.44]
[1746795255480,1.1613053,172.22,172.09,27.44]
[1746795255879,1.1613053,172.22,172.08,1.8888]
[1746795256186,1.1613053,172.22,172.09,27.44]
[1746795257281,1.1613053,172.22,172.21,5.8077]
[1746795257481,38.38129821,172.24,172.21,5.8077]
[1746795257682,38.38129821,172.24,172.14,27.44]
[1746795257881,38.38129821,172.24,172.22,5.8072]
[1746795258188,27.44,172.24,172.14,27.44]
[1746795259686,27.44,172.24,172.22,5.8073]
[1746795259986,27.44,172.24,172.23,5.807]
[1746795260187,357.0,172.25,172.14,27.44]
[1746795260387,38.38129821,172.26,172.15,3.7737]
[1746795260583,38.38129821,172.26,172.23,5.8069]
[1746795261287,10.94129821,172.26,172.15,3.7737]
[1746795261988,10.94129821,172.26,172.23,5.8069]
[1746795262488,10.94129821,172.26,172.21,5.8075]
[1746795262683,10.94129821,172.26,172.15,3.7737]
[1746795263184,5.8064,172.25,172.21,5.8074]
[1746795263389,10.94129821,172.26,172.15,3.7737]
[1746795264091,5.8064,172.25,172.15,3.7737]